bitfinex/quotes_SOLUSD_20220227
["timestamp","ask_amount","ask_price","bid_price","bid_amount"]
[1645995712203,1.59772059,86.0,85.921,8.74678921]
[1645995712403,29.42491725,85.999,85.921,8.74678921]
[1645995712603,29.42491725,85.999,85.922,2.74678921]
[1645995712804,29.42491725,85.999,85.923,6.0]
[1645995713226,29.42491725,85.999,85.924,117.0]
[1645995713433,29.42491725,85.999,85.926,117.0]
[1645995713725,1.59772059,86.002,85.93,13.77]
[1645995713926,1.59772059,86.002,85.931,6.0]
[1645995714128,1.59772059,86.001,85.931,6.0]
[1645995714529,1.59772059,86.0,85.931,6.0]
[1645995714832,1.59772059,86.01,85.932,142.97106239]
[1645995715028,1.59772059,86.022,85.934,117.0]
[1645995715231,1.59772059,86.016,85.936,117.0]
[1645995715428,1.59772059,86.019,85.937,123.0]
[1645995715628,33.18101725,86.018,85.95,13.77]
[1645995715834,1.79863224,86.017,85.951,6.0]
[1645995716029,1.59772059,86.011,85.951,6.0]
[1645995716229,1.59772059,86.012,85.95,13.77]
[1645995716429,1.59772059,86.011,85.951,6.0]
[1645995716629,1.59772059,86.008,85.951,6.0]
[1645995716830,1.59772059,86.01,85.951,6.0]
[1645995717030,1.59772059,86.006,85.951,6.0]
[1645995717230,36.05682754,86.005,85.951,6.0]
[1645995717629,1.59772059,86.002,85.951,6.0]
[1645995717830,1.59772059,86.003,85.951,6.0]
[1645995718033,1.59772059,86.004,85.951,6.0]
[1645995718231,1.59772059,86.001,85.951,6.0]
[1645995718533,1.59772059,86.0,85.951,6.0]
[1645995718931,1.59772059,86.002,85.951,6.0]
[1645995719332,1.59772059,86.0,85.951,6.0]
[1645995719631,1.59772059,85.999,85.9,172.11]
[1645995719934,1.59772059,85.979,85.92,13.77]
[1645995720130,1.59772059,85.979,85.921,6.0]
[1645995720732,3.35,86.079,85.921,6.0]
[1645995720733,1.59772059,85.98,85.922,117.0]
[1645995720935,1.59772059,85.99,85.924,117.0]
[1645995721134,1.59772059,85.991,85.926,117.0]
[1645995721332,1.59772059,85.992,85.94,13.77]
[1645995721539,1.59772059,85.992,85.941,6.0]
[1645995722034,1.59772059,85.993,85.941,6.0]
[1645995722433,1.59772059,85.992,85.941,6.0]
[1645995722833,1.59772059,85.991,85.941,6.0]
[1645995723034,1.59772059,85.989,85.941,6.0]
[1645995723234,6.48776211,86.017,85.94,13.77]
[1645995723235,1.59772059,85.983,85.94,13.77]
[1645995723436,1.59772059,85.977,85.92,13.77]
[1645995723638,1.59772059,85.975,85.921,6.0]
[1645995724038,1.59772059,85.974,85.921,6.0]
[1645995724238,1.59772059,85.973,85.921,6.0]
[1645995724839,1.59772059,85.973,85.92,13.77]
[1645995725040,1.59772059,85.972,85.92,13.77]
[1645995725241,1.59772059,85.969,85.92,13.77]
[1645995725445,1.50528102,85.967,85.92,13.77]
[1645995725641,1.59772059,85.966,85.92,13.77]
[1645995726247,22.6285,85.994,85.92,13.77]
[1645995726248,1.59772059,85.964,85.92,13.77]
[1645995726644,1.59772059,85.963,85.89,13.77]
[1645995726845,1.59772059,85.951,85.89,13.77]
[1645995727246,1.59772059,85.95,85.89,13.77]
[1645995727446,1.59772059,85.945,85.891,117.0]
[1645995727646,1.59772059,85.957,85.891,6.0]
[1645995727846,1.59772059,85.958,85.891,6.0]
[1645995728446,1.59772059,85.959,85.892,117.0]
[1645995728647,1.59772059,85.959,85.894,117.0]
[1645995728950,1.59772059,85.96,85.896,117.0]
[1645995729147,1.59772059,85.961,85.901,117.0]
[1645995729347,1.59772059,85.966,85.903,117.0]
[1645995729551,1.59772059,85.98,85.905,117.0]
[1645995729746,1.59772059,85.98,85.92,13.77]
[1645995729949,1.59772059,85.984,85.921,6.0]
[1645995730146,1.59772059,85.983,85.921,6.0]
[1645995730350,1.59772059,85.985,85.921,6.0]
[1645995730747,1.59772059,85.984,85.921,6.0]
[1645995730946,1.59772059,85.984,85.922,117.0]
[1645995731148,1.59772059,85.985,85.924,117.0]
[1645995731350,1.59772059,85.987,85.926,117.0]
[1645995731550,1.59772059,85.993,85.928,117.0]
[1645995731747,1.59772059,85.991,85.94,13.77]
[1645995731947,1.59772059,85.992,85.941,6.0]
[1645995732147,1.59772059,85.99,85.941,6.0]
[1645995732548,1.59772059,85.99,85.942,117.0]
[1645995732747,1.59772059,85.99,85.941,6.0]
[1645995732748,1.59772059,85.999,85.944,117.0]
[1645995732949,1.59772059,85.999,85.946,117.0]
[1645995733148,1.59772059,86.0,85.96,13.77]
[1645995733348,1.59772059,86.0,85.945,6.0]
[1645995733349,1.59772059,86.0,85.97,13.77]
[1645995733548,1.59772059,86.001,85.97,13.77]
[1645995733750,1.59772059,86.003,85.97,13.77]
[1645995733949,1.59772059,86.003,85.971,6.0]
[1645995734152,1.59772059,86.003,85.97,13.77]
[1645995734153,1.59772059,86.002,85.97,13.77]
[1645995734649,9.73566659,86.026,85.97,13.77]
[1645995734650,1.59772059,86.003,85.97,13.77]
[1645995734850,1.59772059,86.002,85.97,13.77]
[1645995735457,1.59772059,86.007,85.97,13.77]
[1645995735654,4.86567001,86.051,85.97,13.77]
[1645995735655,1.59772059,86.008,85.971,6.0]
[1645995736455,1.59772059,86.008,85.97,13.77]
[1645995736952,1.59772059,86.007,85.97,13.77]
[1645995737153,1.59772059,86.007,85.971,6.0]
[1645995737351,1.59772059,86.006,85.97,13.77]
[1645995739255,1.59772059,86.003,85.97,13.77]
[1645995739453,1.59772059,86.004,85.97,13.77]
[1645995739753,1.59772059,86.003,85.97,13.77]
[1645995739955,1.59772059,86.002,85.97,13.77]
[1645995740352,1.59772059,86.008,85.971,6.0]
[1645995740556,1.59772059,86.009,85.971,6.0]
[1645995740756,1.59772059,86.014,85.971,6.0]
[1645995741158,1.59772059,86.015,85.971,6.0]
[1645995741453,1.59772059,86.018,85.971,6.0]
[1645995741957,1.59772059,86.02,85.971,6.0]
[1645995742355,1.59772059,86.017,85.971,6.0]
[1645995742555,1.59772059,86.014,85.97,13.77]
[1645995742954,1.59772059,86.007,85.97,13.77]
[1645995743157,1.59772059,86.004,85.97,13.77]
[1645995743355,1.59772059,86.002,85.951,47.7619]
[1645995743555,1.59772059,86.0,85.952,6.0]
[1645995743855,1.59772059,85.999,85.952,6.0]
[1645995744054,1.59772059,85.998,85.952,6.0]
[1645995744256,1.59772059,85.999,85.951,6.0]
[1645995745258,1.59772059,86.0,85.951,6.0]
[1645995745457,1.59772059,86.001,85.951,6.0]
[1645995745657,1.59772059,86.009,85.951,6.0]
[1645995745859,1.59772059,86.009,85.873,2.93178316]
[1645995746059,1.59772059,86.007,85.892,17.4533]
[1645995746258,1.59772059,85.993,85.857,32.93867268]
[1645995746458,1.59772059,85.976,85.86,13.77]
[1645995746677,1.59772059,85.961,85.86,13.77]
[1645995746861,1.76314493,85.958,85.828,49.7721]
[1645995747061,19.07632059,85.95,85.828,49.7721]
[1645995747261,1.59772059,85.941,85.828,49.7721]
[1645995747459,6.0,85.94,85.829,38.13447707]
[1645995747659,1.72045956,85.956,85.831,117.0]
[1645995747860,1.72045956,85.956,85.834,2.78898112]
[1645995748058,1.72045956,85.956,85.837,2.46658952]
[1645995748259,1.72045956,85.956,85.853,117.0]
[1645995748459,1.72045956,85.956,85.855,117.0]
[1645995748660,1.72045956,85.956,85.871,30.91754385]
[1645995748959,118.72045956,85.956,85.871,30.91754385]
[1645995749159,1.60216509,85.955,85.871,30.91754385]
[1645995749959,1.60216509,85.955,85.872,6.0]
[1645995750360,1.60216509,85.955,85.873,25.46416118]
[1645995750564,1.60216509,85.955,85.874,6.0]
[1645995750961,1.60216509,85.955,85.875,117.0]
[1645995751263,1.60216509,85.955,85.877,117.0]
[1645995751462,1.60216509,85.955,85.878,6.0]
[1645995751863,1.60216509,85.955,85.872,6.0]
[1645995756268,1.60216509,85.955,85.837,24.26313394]
[1645995756269,1.59772059,85.949,85.837,24.26313394]
[1645995756466,117.0,85.947,85.782,2.62603443]
[1645995756668,1.59772059,85.933,85.787,48.7304]
[1645995756866,1.59772059,85.925,85.8,13.77]
[1645995757066,6.0,85.932,85.812,34.48691512]
[1645995757067,117.0,85.919,85.812,34.48691512]
[1645995757270,117.0,85.909,85.812,34.48691512]
[1645995757467,117.0,85.907,85.812,34.48691512]
[1645995757667,1.93772177,85.906,85.812,34.48691512]
[1645995757868,1.93772177,85.906,85.777,112.6]
[1645995757869,117.0,85.904,85.777,112.6]
[1645995758072,117.0,85.889,85.777,112.6]
[1645995758270,13.77,85.89,85.777,112.6]
[1645995758271,1.48001472,85.887,85.777,112.6]
[1645995758470,6.0,85.886,85.78,13.77]
[1645995758670,1.48001472,85.887,85.781,6.0]
[1645995758872,6.0,85.886,85.782,35.65948428]
[1645995759071,6.0,85.886,85.783,5.5]
[1645995759470,6.0,85.886,85.783,48.90223519]
[1645995759671,6.0,85.886,85.784,43.40223519]
[1645995759873,6.0,85.886,85.785,117.0]
[1645995760071,6.0,85.886,85.785,162.64220661]
[1645995760271,6.0,85.886,85.787,117.0]
[1645995760470,6.0,85.886,85.8,13.77]
[1645995760673,6.0,85.886,85.802,31.32301673]
[1645995760872,6.0,85.886,85.803,6.0]
[1645995761573,47.5764,85.888,85.804,2.74678921]
[1645995761793,47.5764,85.888,85.805,6.0]
[1645995761991,1.85852642,85.908,85.82,13.77]
[1645995762193,1.85852642,85.908,85.821,33.17750457]
[1645995762692,1.85852642,85.908,85.822,2.74678921]
[1645995762894,1.85852642,85.908,85.823,6.0]
[1645995763293,6.0,85.907,85.823,6.0]
[1645995763492,6.0,85.907,85.822,6.0]
[1645995767096,6.0,85.907,85.823,2.74678921]
[1645995767395,1.85852642,85.908,85.824,6.0]
[1645995767796,1.85852642,85.908,85.824,8.74678921]
[1645995767998,46.7887,85.917,85.825,117.0]
[1645995768197,46.7887,85.917,85.824,8.74678921]
[1645995768198,1.90543966,85.918,85.827,117.0]
[1645995768399,17.4777,85.933,85.843,117.0]
[1645995768596,17.4777,85.933,85.845,117.0]
[1645995768796,17.4777,85.933,85.846,6.0]
[1645995769000,117.0,85.953,85.86,13.77]
[1645995769197,117.0,85.953,85.862,26.60647873]
[1645995769398,4.69174638,85.952,85.863,6.0]
[1645995769599,117.0,85.95,85.862,26.60647873]
[1645995769800,1.56642544,85.947,85.862,26.60647873]
[1645995769999,1.759656,85.944,85.862,26.60647873]
[1645995770302,1.42562315,85.941,85.862,26.60647873]
[1645995770500,117.0,85.939,85.862,26.60647873]
[1645995770699,117.0,85.937,85.84,13.77]
[1645995770900,117.0,85.935,85.841,6.0]
[1645995771099,117.0,85.935,85.84,13.77]
[1645995771100,1.70911836,85.934,85.84,13.77]
[1645995771301,1.70911836,85.934,85.82,13.77]
[1645995771302,117.0,85.932,85.82,13.77]
[1645995771501,1.75960028,85.931,85.823,6.0]
[1645995771700,117.0,85.929,85.823,6.0]
[1645995771901,117.0,85.929,85.788,27.00992315]
[1645995771902,13.77,85.92,85.788,27.00992315]
[1645995772101,13.77,85.92,85.781,112.6]
[1645995772102,1.8346537,85.918,85.781,112.6]
[1645995772301,117.0,85.916,85.781,112.6]
[1645995772500,1.59772059,85.907,85.781,112.6]
[1645995772700,117.0,85.899,85.782,27.3764374]
[1645995772904,117.0,85.897,85.783,6.0]
[1645995773104,1.5027256,85.896,85.784,117.0]
[1645995773301,117.0,85.895,85.785,6.0]
[1645995773502,117.0,85.893,85.783,6.0]
[1645995773701,1.84269819,85.89,85.783,6.0]
[1645995773904,117.0,85.888,85.782,27.3764374]
[1645995774102,1.74576956,85.885,85.783,6.0]
[1645995774301,54.43908921,85.889,85.783,6.0]
[1645995774302,1.52739671,85.882,85.783,6.0]
[1645995774503,117.0,85.88,85.783,6.0]
[1645995774706,117.0,85.878,85.782,27.3764374]
[1645995774904,7.55818847,85.877,85.782,27.3764374]
[1645995775304,117.0,85.876,85.783,6.0]
[1645995775508,117.0,85.874,85.782,27.3764374]
[1645995775705,1.43265116,85.871,85.782,27.3764374]
[1645995775906,6.0,85.875,85.782,27.3764374]
[1645995775907,1.89281676,85.868,85.782,27.3764374]
[1645995776106,1.86096658,85.865,85.782,27.3764374]
[1645995776305,6.0,85.864,85.782,27.3764374]
[1645995776506,1.94499859,85.88,85.783,6.0]
[1645995776705,6.0,85.879,85.783,6.0]
[1645995776913,117.0,85.878,85.783,6.0]
[1645995777107,117.0,85.876,85.783,6.0]
[1645995777306,1.70180544,85.873,85.782,27.3764374]
[1645995777506,117.0,85.871,85.782,27.3764374]
[1645995777705,117.0,85.869,85.782,27.3764374]
[1645995777906,117.0,85.867,85.782,27.3764374]
[1645995778111,117.0,85.865,85.782,27.3764374]
[1645995778306,1.76445421,85.862,85.782,27.3764374]
[1645995778507,117.0,85.86,85.782,27.3764374]
[1645995778707,1.87399077,85.857,85.782,27.3764374]
[1645995778908,117.0,85.855,85.782,27.3764374]
[1645995779207,6.0,85.854,85.782,27.3764374]
[1645995779407,6.0,85.854,85.783,8.74678921]
[1645995779807,6.0,85.869,85.784,2.74678921]
[1645995780007,6.0,85.869,85.782,27.3764374]
[1645995780209,1.53960491,85.867,85.783,6.0]
[1645995780410,1.75183809,85.864,85.782,27.3764374]
[1645995780614,6.0,85.866,85.782,27.3764374]
[1645995780615,117.0,85.862,85.782,27.3764374]
[1645995780808,1.42170463,85.859,85.782,27.3764374]
[1645995781011,6.0,85.858,85.782,27.3764374]
[1645995781409,6.0,85.858,85.783,6.0]
[1645995782109,6.0,85.858,85.782,27.3764374]
[1645995782309,1.56645121,85.864,85.783,6.0]
[1645995782509,117.0,85.862,85.783,6.0]
[1645995782709,117.0,85.862,85.782,27.3764374]
[1645995782710,1.50479313,85.859,85.782,27.3764374]
[1645995782910,117.0,85.857,85.782,27.3764374]
[1645995783112,117.0,85.855,85.782,27.3764374]
[1645995783311,1.60887794,85.852,85.782,27.3764374]
[1645995783511,6.0,85.851,85.783,117.0]
[1645995783713,6.0,85.858,85.783,117.0]
[1645995783714,6.0,85.858,85.79,13.77]
[1645995783913,24.6711,85.87,85.791,123.0]
[1645995784114,1.55137007,85.882,85.791,6.0]
[1645995784414,117.0,85.88,85.791,2.74678921]
[1645995784614,117.0,85.878,85.785,24.9636]
[1645995784819,1.6441095,85.875,85.785,24.9636]
[1645995785017,1.73016461,85.872,85.785,24.9636]
[1645995785219,117.0,85.87,85.785,24.9636]
[1645995785517,1.71912579,85.867,85.782,27.3764374]
[1645995785719,117.0,85.865,85.782,27.3764374]
[1645995785917,117.0,85.863,85.782,27.3764374]
[1645995786116,1.49285167,85.86,85.782,27.3764374]
[1645995786317,117.0,85.858,85.782,27.3764374]
[1645995786517,7.55516398,85.857,85.782,27.3764374]
[1645995787516,5.69627574,85.857,85.782,27.3764374]
[1645995787717,1.65582506,85.877,85.782,30.12322661]
[1645995787938,1.65582506,85.877,85.783,6.0]
[1645995788319,1.65582506,85.877,85.784,2.74678921]
[1645995788518,1.65582506,85.877,85.785,6.0]
[1645995788918,1.65582506,85.877,85.786,2.74678921]
[1645995789118,1.65582506,85.877,85.8,13.77]
[1645995789318,1.65582506,85.877,85.802,36.53249642]
[1645995789518,1.65582506,85.877,85.803,6.0]
[1645995789917,1.65582506,85.877,85.803,8.74678921]
[1645995790118,1.65582506,85.877,85.804,2.74678921]
[1645995790320,1.65582506,85.877,85.805,6.0]
[1645995790721,1.65582506,85.877,85.806,2.74678921]
[1645995790926,1.65582506,85.877,85.802,36.53249642]
[1645995790927,1.65582506,85.877,85.807,6.0]
[1645995791524,1.65582506,85.877,85.807,3.25321079]
[1645995791729,1.70907739,85.875,85.79,13.77]
[1645995791928,1.70907739,85.875,85.732,70.4935]
[1645995791929,118.70907739,85.875,85.74,13.77]
[1645995792128,118.79105353,85.869,85.72,13.77]
[1645995792328,1.59772059,85.862,85.7,13.77]
[1645995792526,117.0,85.849,85.701,32.06693582]
[1645995792727,13.77,85.84,85.701,32.06693582]
[1645995792929,117.0,85.829,85.701,32.06693582]
[1645995793227,117.0,85.819,85.701,32.06693582]
[1645995793532,13.77,85.82,85.68,23.9414]
[1645995793533,1.47611413,85.816,85.68,37.7114]
[1645995793727,3.35,85.809,85.647,117.0]
[1645995793926,70.15,85.81,85.65,13.77]
[1645995793927,117.0,85.799,85.65,13.77]
[1645995794127,117.0,85.789,85.65,13.77]
[1645995794328,117.0,85.787,85.651,21.71031208]
[1645995794526,6.0,85.786,85.652,38.59722778]
[1645995794727,6.0,85.786,85.653,119.50398762]
[1645995794927,6.0,85.786,85.655,117.0]
[1645995795227,2.74678921,85.785,85.671,32.72469256]
[1645995795446,117.0,85.783,85.671,32.72469256]
[1645995795646,117.0,85.781,85.671,32.72469256]
[1645995795854,117.0,85.779,85.671,32.72469256]
[1645995796052,117.0,85.777,85.671,32.72469256]
[1645995796248,7.60889044,85.776,85.671,32.72469256]
[1645995796448,1.60889044,85.776,85.671,32.72469256]
[1645995796648,117.0,85.774,85.671,32.72469256]
[1645995796851,117.0,85.772,85.671,32.72469256]
[1645995797048,117.0,85.77,85.671,32.72469256]
[1645995797247,117.0,85.768,85.671,32.72469256]
[1645995797450,117.0,85.766,85.671,32.72469256]
[1645995797648,117.0,85.764,85.671,32.72469256]
[1645995797850,117.0,85.762,85.671,32.72469256]
[1645995798049,124.45716092,85.761,85.671,32.72469256]
[1645995798249,1.77254067,85.76,85.671,32.72469256]
[1645995798449,6.0,85.759,85.671,32.72469256]
[1645995798949,1.76088104,85.767,85.671,32.72469256]
[1645995799149,1.61759397,85.764,85.671,32.72469256]
[1645995799450,6.0,85.763,85.671,32.72469256]
[1645995799649,6.0,85.763,85.672,6.0]
[1645995799851,6.0,85.769,85.672,6.0]
[1645995800051,6.0,85.782,85.672,6.0]
[1645995800452,117.0,85.781,85.672,6.0]
[1645995800652,117.0,85.779,85.672,6.0]
[1645995800851,7.81494203,85.778,85.672,6.0]
[1645995801052,8.74678921,85.778,85.672,6.0]
[1645995801253,8.74678921,85.778,85.671,32.72469256]
[1645995801452,6.0,85.778,85.671,32.72469256]
[1645995801651,1.49103868,85.776,85.671,32.72469256]
[1645995801854,117.0,85.774,85.671,32.72469256]
[1645995802052,117.0,85.772,85.659,46.5447]
[1645995802254,117.0,85.77,85.66,6.0]
[1645995802452,117.0,85.768,85.631,6.0]
[1645995802652,1.63626803,85.767,85.64,13.77]
[1645995802854,117.0,85.765,85.641,6.0]
[1645995803151,1.67496587,85.762,85.642,32.83333148]
[1645995803352,117.0,85.76,85.643,6.0]
[1645995803552,117.0,85.758,85.643,6.0]
[1645995803754,70.15,85.755,85.61,13.77]
[1645995803961,7.75778443,85.757,85.611,6.0]
[1645995803962,117.0,85.739,85.611,6.0]
[1645995804152,117.0,85.739,85.583,6.0]
[1645995804153,4.88861033,85.738,85.583,6.0]
[1645995804353,117.0,85.737,85.583,6.0]
[1645995804554,82.38741033,85.738,85.58,13.77]
[1645995804555,117.0,85.719,85.581,6.0]
[1645995804753,13.77,85.71,85.584,32.56891205]
[1645995804954,7.91630817,85.709,85.585,6.0]
[1645995805153,7.91630817,85.709,85.59,13.77]
[1645995805354,119.74678921,85.708,85.59,13.77]
[1645995805553,117.0,85.706,85.584,32.56891205]
[1645995805753,7.42965912,85.705,85.584,32.56891205]
[1645995805954,7.42965912,85.705,85.59,13.77]
[1645995806155,7.42965912,85.705,85.553,77.4208]
[1645995806355,13.77,85.7,85.56,13.77]
[1645995806557,7.57829802,85.699,85.56,13.77]
[1645995806755,117.0,85.698,85.56,13.77]
[1645995806956,117.0,85.689,85.561,35.96707177]
[1645995807158,1.50483814,85.688,85.561,35.96707177]
[1645995807359,117.0,85.686,85.561,35.96707177]
[1645995807563,1.89024032,85.683,85.561,35.96707177]
[1645995807759,117.0,85.669,85.554,23.5994]
[1645995807961,117.0,85.649,85.51,13.77]
[1645995808260,118.80615547,85.639,85.503,46.9357]
[1645995808459,1.94311839,85.638,85.503,46.9357]
[1645995808659,117.0,85.636,85.504,33.26766309]
[1645995808862,1.59468275,85.633,85.504,33.26766309]
[1645995809064,13.77,85.62,85.504,33.26766309]
[1645995809260,1.83289126,85.619,85.504,33.26766309]
[1645995809460,1.83289126,85.619,85.51,13.77]
[1645995809662,1.94822124,85.63,85.51,13.77]
[1645995809961,1.89260156,85.647,85.512,117.0]
[1645995810161,1.89260156,85.647,85.511,24.9437538]
[1645995810162,1.89260156,85.647,85.525,33.95141443]
[1645995810361,1.89260156,85.647,85.524,229.6]
[1645995810362,2.74678921,85.663,85.541,28.89091772]
[1645995810562,1.95526762,85.656,85.55,13.77]
[1645995810862,1.66571766,85.677,85.552,117.0]
[1645995811061,1.80611134,85.685,85.554,146.87625235]
[1645995811262,1.80611134,85.685,85.568,37.53806225]
[1645995811462,1.80611134,85.685,85.58,13.77]
[1645995811666,1.80611134,85.685,85.582,35.14035793]
[1645995811864,2.74678921,85.684,85.583,6.0]
[1645995812264,6.0,85.683,85.582,35.14035793]
[1645995812465,36.85089298,85.683,85.582,35.14035793]
[1645995812664,13.77,85.68,85.582,35.14035793]
[1645995812865,7.57083226,85.679,85.582,35.14035793]
[1645995814066,7.57083226,85.679,85.561,2.5884259]
[1645995814270,148.84864738,85.678,85.56,112.6]
[1645995814467,1.48950209,85.675,85.56,112.6]
[1645995814669,1.42525331,85.672,85.56,112.6]
[1645995814868,6.0,85.671,85.561,123.0]
[1645995815067,6.0,85.671,85.571,117.0]
[1645995815267,6.0,85.671,85.573,117.0]
[1645995815467,6.0,85.68,85.575,117.0]
[1645995815667,7.67184504,85.685,85.577,147.47615785]
[1645995815668,6.0,85.685,85.577,147.47615785]
[1645995815868,6.0,85.697,85.591,117.0]
[1645995816070,6.0,85.697,85.59,13.77]
[1645995816071,6.0,85.697,85.597,117.0]
[1645995816269,1.71474748,85.719,85.611,117.0]
[1645995816471,6.0,85.718,85.615,117.0]
[1645995816669,6.0,85.718,85.617,117.0]
[1645995816875,6.0,85.718,85.62,13.77]
[1645995817072,6.0,85.718,85.621,6.0]
[1645995817270,6.0,85.718,85.622,117.0]
[1645995817470,6.0,85.718,85.624,117.0]
[1645995817672,1.65072873,85.74,85.628,117.0]
[1645995817871,6.0,85.739,85.63,117.0]
[1645995818073,6.0,85.746,85.641,34.41047647]
[1645995818270,6.0,85.746,85.642,6.0]
[1645995818670,1.84621456,85.747,85.643,117.0]
[1645995818870,1.84621456,85.747,85.645,117.0]
[1645995819071,1.84621456,85.747,85.646,6.0]
[1645995819272,1.84621456,85.747,85.661,25.91693979]
[1645995819872,1.84621456,85.747,85.662,8.74678921]
[1645995820070,1.42644684,85.765,85.662,8.74678921]
[1645995820270,2.74678921,85.77,85.662,8.74678921]
[1645995820271,38.10585939,85.78,85.663,119.74678921]
[1645995820472,1.72322935,85.792,85.665,117.0]
[1645995820671,118.72322935,85.792,85.667,117.0]
[1645995820871,117.0,85.792,85.681,33.27205961]
[1645995821072,1.65194347,85.79,85.682,6.0]
[1645995821370,1.74226196,85.787,85.682,8.74678921]
[1645995821573,117.0,85.785,85.682,6.0]
[1645995821773,1.50257203,85.784,85.682,6.0]
[1645995821973,6.0,85.783,85.683,2.74678921]
[1645995822174,1.65170139,85.781,85.684,6.0]
[1645995822372,117.0,85.779,85.682,6.0]
[1645995822571,1.49688203,85.776,85.682,8.74678921]
[1645995822771,6.0,85.775,85.682,8.74678921]
[1645995822974,6.0,85.775,85.682,6.0]
[1645995823372,6.0,85.781,85.683,119.74678921]
[1645995823574,6.0,85.793,85.685,117.0]
[1645995823772,6.0,85.793,85.684,6.0]
[1645995823773,5.5,85.793,85.686,6.0]
[1645995823972,29.07548853,85.793,85.686,6.0]
[1645995824174,118.76218862,85.792,85.686,8.74678921]
[1645995824372,1.76218862,85.792,85.686,8.74678921]
[1645995824574,23.57548853,85.791,85.686,8.74678921]
[1645995824772,1.91721823,85.79,85.686,8.74678921]
[1645995824972,1.91721823,85.79,85.69,13.77]
[1645995825177,117.0,85.788,85.67,2.74678921]
[1645995825377,13.77,85.78,85.62,17.5108]
[1645995825576,117.0,85.779,85.662,6.0]
[1645995825773,117.0,85.777,85.662,6.0]
[1645995825975,117.0,85.775,85.662,6.0]
[1645995826176,117.0,85.773,85.663,31.26499572]
[1645995826374,117.0,85.769,85.664,6.0]
[1645995826574,6.0,85.768,85.67,13.77]
[1645995826774,6.0,85.768,85.672,117.0]
[1645995826975,6.0,85.77,85.674,117.0]
[1645995827180,6.0,85.77,85.678,117.0]
[1645995827376,117.0,85.793,85.691,34.0162103]
[1645995827576,117.0,85.791,85.692,6.0]
[1645995827775,7.89993838,85.79,85.692,6.0]
[1645995827976,7.89993838,85.79,85.692,8.74678921]
[1645995828375,7.89993838,85.79,85.692,6.0]
[1645995829198,117.0,85.789,85.692,6.0]
[1645995829376,42.90678921,85.797,85.692,6.0]
[1645995829377,117.0,85.787,85.692,6.0]
[1645995829578,117.0,85.785,85.692,6.0]
[1645995829780,117.0,85.783,85.692,6.0]
[1645995829976,1.94793513,85.78,85.692,6.0]
[1645995830179,6.0,85.779,85.692,6.0]
[1645995831180,6.0,85.786,85.692,6.0]
[1645995831380,6.0,85.786,85.693,2.74678921]
[1645995831578,6.0,85.786,85.694,6.0]
[1645995831981,1.59459464,85.79,85.695,2.74678921]
[1645995832180,6.0,85.789,85.696,6.0]
[1645995832382,6.0,85.789,85.695,2.74678921]
[1645995832582,6.0,85.789,85.697,2.74678921]
[1645995832881,6.0,85.789,85.7,13.77]
[1645995833085,6.0,85.789,85.701,6.0]
[1645995833282,1.59459464,85.79,85.701,8.74678921]
[1645995833486,1.52430393,85.808,85.702,119.74678921]
[1645995833683,1.52430393,85.808,85.706,117.0]
[1645995833983,1.43830952,85.826,85.721,34.91249376]
[1645995834184,1.43830952,85.826,85.73,13.77]
[1645995834388,22.94282186,85.838,85.731,6.0]
[1645995834584,1.90399441,85.837,85.732,117.0]
[1645995834887,1.90399441,85.837,85.735,117.0]